bitfinex-derivatives/quotes_ETHF0:USTF0_20260123
["timestamp","ask_amount","ask_price","bid_price","bid_amount"]
[1769138160047,0.87216162,2963.2,2962.2,0.89573919]
[1769138160245,0.87216162,2963.1,2962.2,0.89573919]
[1769138160445,0.87216162,2963.0,2962.2,0.89573919]
[1769138160743,0.87216162,2962.9,2962.2,0.89573919]
[1769138160944,0.87216162,2962.8,2962.2,0.89573919]
[1769138161145,0.87216162,2962.7,2962.2,0.89573919]
[1769138161347,0.15172736,2963.3,2962.2,0.89573919]
[1769138161648,0.8721228,2963.2,2962.2,0.89573919]
[1769138161846,0.8721228,2963.1,2962.2,0.89573919]
[1769138162040,0.8721228,2963.0,2962.2,0.89573919]
[1769138162243,0.8721228,2962.9,2962.2,0.89573919]
[1769138162444,0.8721228,2962.8,2962.2,0.89573919]
[1769138162645,0.15172736,2963.3,2962.2,0.89573919]
[1769138162945,0.87213614,2963.2,2962.5,0.89323628]
[1769138163137,0.87213614,2963.1,2962.5,0.89323628]
[1769138163339,0.71712062,2963.0,2962.5,0.89323628]
[1769138163648,0.14293391,2963.6,2962.5,0.89323628]
[1769138164556,0.14293391,2963.6,2962.8,0.00506696]
[1769138165440,0.00237426,2963.6,2962.8,0.89830324]
[1769138166442,0.14271454,2964.0,2963.1,0.89323628]
[1769138166749,0.14271454,2964.4,2963.3,0.89323628]
[1769138167548,0.1464051,2964.4,2963.3,0.89323628]
[1769138173548,0.00369056,2964.4,2963.5,0.89323628]
[1769138177651,0.00369056,2964.4,2963.9,0.89323628]
[1769138180055,0.14271454,2964.9,2963.9,0.89323628]
[1769138180261,0.42017818,2965.3,2964.1,0.89323628]
[1769138180447,0.8692257,2965.2,2964.1,0.89323628]
[1769138180648,0.8692257,2965.1,2964.1,0.89323628]
[1769138180853,0.8692257,2965.0,2963.7,0.89140464]
[1769138181153,0.00406236,2965.0,2963.7,0.89140464]
[1769138181356,0.00406236,2965.0,2963.8,0.06233858]
[1769138181561,0.14271454,2966.0,2964.5,0.94961704]
[1769138181756,0.14271454,2965.8,2964.1,2.19406696]
[1769138182062,0.14271454,2965.6,2964.1,2.19406696]
[1769138182259,0.14271454,2965.6,2964.1,0.00506696]
[1769138182462,0.14271454,2965.4,2964.1,0.00900878]
[1769138182655,0.14271454,2965.2,2964.1,0.00900878]
[1769138185166,0.14271454,2965.0,2964.1,0.00900878]
[1769138186256,0.14271454,2965.4,2964.1,0.00900878]
[1769138186461,0.86795652,2965.3,2964.1,0.00900878]
[1769138186659,0.86795652,2965.2,2964.1,0.00900878]
[1769138186862,0.14271454,2965.4,2964.1,0.00900878]
[1769138187061,0.00299951,2965.6,2964.1,0.96525863]
[1769138187263,0.86795156,2965.5,2964.1,0.96525863]
[1769138187471,0.00299951,2965.6,2964.1,0.96525863]
[1769138187765,0.86776295,2965.5,2964.1,0.96525863]
[1769138187967,0.86776198,2965.4,2964.2,0.06478434]
[1769138188170,0.00299951,2965.6,2964.2,0.06478434]
[1769138189366,0.14571405,2965.6,2964.1,0.00900878]
[1769138190571,0.14571405,2965.6,2964.1,0.96666162]
[1769138191071,0.00299951,2965.6,2964.2,0.0662482]
[1769138194073,0.00299951,2965.6,2964.5,0.89140464]
[1769138194571,0.00299951,2965.6,2964.5,0.95574626]
[1769138199673,0.14317106,2965.6,2964.1,0.90041342]
[1769138199874,0.14317106,2965.6,2964.1,4.68941342]
[1769138201177,0.14317106,2965.6,2964.1,0.90041342]
[1769138201482,0.14317106,2965.6,2964.1,4.69041342]
[1769138203882,0.00299951,2965.6,2964.2,0.06172072]
[1769138206991,0.14317106,2965.6,2964.1,3.80000878]
[1769138207582,0.87113549,2965.5,2964.1,3.80000878]
[1769138207789,0.14317106,2965.6,2964.1,3.80000878]
[1769138208088,0.87113627,2965.5,2964.1,3.80000878]
[1769138208387,0.14317106,2965.6,2964.1,3.80000878]
[1769138208388,0.87113627,2965.4,2964.1,3.80000878]
[1769138208580,0.14317106,2965.6,2964.1,3.80000878]
[1769138208785,0.14017155,2965.4,2964.1,0.00900878]
[1769138208990,0.14017155,2965.2,2964.1,0.00900878]
[1769138209189,1.01166139,2965.1,2964.1,0.00900878]
[1769138209391,0.87148984,2965.0,2964.1,0.00900878]
[1769138210391,1.01166139,2965.0,2964.1,0.00900878]
[1769138210690,0.87148984,2964.9,2964.1,0.00900878]
[1769138211490,1.01166139,2964.9,2964.1,0.00900878]
[1769138211787,0.87148984,2964.8,2964.1,0.00900878]
[1769138213891,1.01166139,2964.8,2964.1,0.00900878]
[1769138214096,0.87148984,2964.7,2964.1,0.00900878]
[1769138217987,0.14017155,2964.8,2964.1,0.00900878]
[1769138218687,0.14017155,2964.8,2963.4,3.789]
[1769138218888,0.14522955,2964.7,2963.4,3.789]
[1769138219692,0.14522955,2964.7,2963.4,3.79223247]
[1769138221900,0.005058,2964.7,2963.5,0.06582898]
[1769138222091,0.14237801,2965.5,2963.7,2.49563729]
[1769138222298,0.14237801,2965.3,2963.7,2.49563729]
[1769138226400,0.14237801,2965.3,2963.7,2.43486631]
[1769138226610,0.14206584,2965.1,2963.5,2.43486631]
[1769138227905,0.87131105,2965.0,2963.4,6.22709878]
[1769138228202,0.14206584,2964.9,2963.4,6.22709878]
[1769138230700,0.14206584,2964.9,2963.4,6.29026073]
[1769138232310,0.14206584,2964.9,2963.5,0.06312596]
[1769138232505,0.14206584,2965.5,2963.6,0.06413629]
[1769138232809,1.01396785,2965.4,2963.7,0.06413629]
[1769138233009,1.01396785,2965.3,2963.7,0.06413629]
[1769138233208,0.87190201,2965.2,2963.7,0.06413629]
[1769138233508,1.01396785,2965.2,2963.7,0.06413629]
[1769138233703,0.14206584,2965.2,2963.7,0.06413629]
[1769138234410,0.14206584,2965.2,2963.7,2.4990026]
[1769138234411,0.87224383,2965.1,2963.7,2.4990026]
[1769138234708,0.14206584,2965.2,2963.7,2.43486631]
[1769138234910,0.14206584,2965.0,2963.5,2.43486631]
[1769138236210,1.01491923,2964.9,2963.5,2.43486631]
[1769138236403,0.14206584,2964.9,2963.5,2.43486631]
[1769138237420,0.14206584,2964.9,2963.6,2.43486631]
[1769138238300,0.87392922,2964.8,2964.0,0.005058]
[1769138238604,0.14206584,2964.9,2964.0,0.005058]
[1769138238805,0.8739295,2964.8,2964.0,0.005058]
[1769138239017,0.14206584,2964.9,2964.0,0.005058]
[1769138239216,0.87392811,2964.8,2964.0,0.005058]
[1769138239511,0.14206584,2964.9,2964.0,0.005058]
[1769138239810,0.14206584,2964.7,2964.0,0.005058]
[1769138240008,1.01598976,2964.6,2963.4,6.22709878]
[1769138240306,0.14206584,2964.6,2963.4,6.22709878]
[1769138240703,0.14206584,2964.6,2963.4,3.79223247]
[1769138241613,0.87406057,2964.5,2963.4,3.79223247]
[1769138241813,0.14206584,2964.6,2963.4,3.79223247]
[1769138242908,0.14206584,2964.6,2963.4,4.68409287]
[1769138243614,0.87409179,2964.5,2963.4,4.68409287]
[1769138243812,0.14206584,2964.6,2963.4,4.68409287]
[1769138244014,0.87409248,2964.5,2963.4,4.68409287]
[1769138244210,0.14206584,2964.6,2963.4,4.68409287]
[1769138244411,0.8739792,2964.5,2963.4,4.68409287]
[1769138244709,0.14206584,2964.6,2963.4,4.68409287]
[1769138244910,0.87391146,2964.5,2963.4,4.68409287]
[1769138245110,0.14206584,2964.6,2963.4,4.68409287]
[1769138245312,0.87361522,2964.5,2963.4,4.68409287]
[1769138245616,0.14206584,2964.6,2963.4,4.68409287]
[1769138245817,0.87358827,2964.5,2963.4,4.68409287]
[1769138246010,0.14206584,2964.6,2963.4,4.68409287]
[1769138246314,0.87358813,2964.5,2963.4,4.68409287]
[1769138246614,0.14206584,2964.6,2963.4,4.68409287]
[1769138246914,0.87348022,2964.5,2963.4,4.68409287]
[1769138247111,0.14206584,2964.6,2963.4,4.68409287]
[1769138247308,0.87342413,2964.5,2963.4,4.68409287]
[1769138247506,0.14206584,2964.6,2963.4,4.68409287]
[1769138247710,0.87339313,2964.5,2963.4,4.68409287]
[1769138248014,0.14206584,2964.6,2963.4,4.68409287]
[1769138253421,1.03392624,2964.6,2963.4,4.68409287]
[1769138254718,0.14020569,2964.4,2963.4,3.79223247]
[1769138257420,0.8918604,2964.6,2963.4,3.79223247]
[1769138257621,0.87363229,2964.5,2963.4,3.79223247]
[1769138257811,0.14526369,2964.7,2963.4,3.79223247]
[1769138258022,0.87363693,2964.6,2963.4,3.79223247]
[1769138258216,0.87363693,2964.5,2963.4,3.79223247]
[1769138258421,0.87363693,2964.4,2963.4,3.79223247]
[1769138258720,0.87363693,2964.3,2963.4,3.79223247]
[1769138258921,0.14526369,2964.7,2963.4,3.79223247]
[1769138259124,0.87370434,2964.6,2963.4,3.79223247]
[1769138259420,0.87370434,2964.5,2963.4,3.79223247]
[1769138259622,0.87370434,2964.4,2963.4,3.79223247]
[1769138259817,0.87370434,2964.3,2963.4,3.79223247]
[1769138260016,0.14526369,2964.7,2963.4,3.79223247]
[1769138260316,0.87371903,2964.6,2963.4,3.79223247]
[1769138260517,0.87371903,2964.5,2963.4,3.79223247]
[1769138260717,0.87371903,2964.4,2963.4,3.79223247]
[1769138260917,0.87371903,2964.3,2963.4,3.79223247]
[1769138261119,0.14526369,2964.7,2963.4,3.79223247]
[1769138261318,0.87377527,2964.6,2963.4,3.79223247]
[1769138261523,0.87377527,2964.5,2963.4,3.79223247]
[1769138261820,0.87377527,2964.4,2963.4,3.79223247]
[1769138262017,0.87377527,2964.3,2963.4,3.79223247]
[1769138262215,0.14526369,2964.7,2963.4,3.79223247]
[1769138262412,0.87381771,2964.6,2963.4,3.79223247]
[1769138262613,0.87381771,2964.5,2963.4,3.79223247]
[1769138262817,0.87381771,2964.4,2963.4,3.79223247]
[1769138263018,0.87381771,2964.3,2963.4,3.79223247]
[1769138263222,0.14526369,2964.7,2963.4,3.79223247]
[1769138263421,0.87399247,2964.6,2963.4,3.79223247]
[1769138263618,0.87399247,2964.5,2963.4,3.79223247]
[1769138263820,0.87399247,2964.4,2963.4,3.79223247]
[1769138264024,0.87399247,2964.3,2963.4,3.79223247]
[1769138264218,0.14526369,2964.7,2963.4,3.79223247]
[1769138264419,1.03206609,2964.4,2963.4,3.79223247]
[1769138264727,0.87420869,2964.3,2963.4,3.79223247]
[1769138265022,0.87420869,2964.2,2963.4,3.79223247]
[1769138265326,0.14020569,2964.4,2963.4,3.79223247]
[1769138265524,0.87429721,2964.3,2963.4,3.79223247]
[1769138265719,0.87429721,2964.2,2963.5,0.8918604]
[1769138265928,0.005058,2964.7,2963.5,0.8918604]
[1769138266225,0.87415393,2964.6,2963.5,0.8918604]
[1769138266525,0.87415393,2964.5,2963.5,0.8918604]
[1769138266825,0.87415393,2964.4,2963.4,3.79223247]
[1769138267023,0.87415393,2964.3,2963.4,3.79223247]
[1769138267223,0.87415393,2964.2,2963.4,3.79223247]
[1769138267424,0.87415393,2964.1,2963.4,3.79223247]
[1769138267622,3.20951307,2965.2,2963.5,0.1523309]
[1769138267623,3.04071307,2965.2,2963.5,0.1523309]
[1769138267828,0.87444768,2965.1,2964.3,0.8918604]
[1769138268023,0.87444768,2965.0,2964.0,0.8918604]
[1769138268228,0.8918604,2965.2,2964.0,0.8918604]
[1769138268526,0.87227904,2965.1,2964.0,0.8918604]
[1769138268828,0.87227904,2965.0,2964.0,0.8918604]
[1769138269030,0.8918604,2965.2,2964.0,0.8918604]
[1769138269327,0.8722775,2965.1,2964.2,0.005058]
[1769138269528,0.8722775,2965.0,2964.2,0.005058]
[1769138269823,0.8918604,2965.2,2964.2,0.005058]
[1769138270024,0.14020569,2964.8,2963.6,2.43486631]
[1769138270220,0.14020569,2964.8,2963.5,2.43486631]
[1769138273028,0.14020569,2964.8,2963.4,7.15095918]
[1769138274428,0.14020569,2964.8,2963.4,7.30329008]
[1769138276433,0.14020569,2964.8,2963.5,0.1523309]
[1769138277631,0.14020569,2964.8,2963.5,2.58719721]
[1769138277930,0.87199846,2964.7,2963.5,0.1523309]
[1769138278126,0.14020569,2964.8,2963.5,0.1523309]
[1769138278325,0.8719851,2964.7,2963.5,0.1523309]
[1769138278525,0.14020569,2964.8,2963.5,0.1523309]
[1769138278831,0.005058,2965.0,2964.0,0.8918604]
[1769138279027,0.005058,2965.0,2964.0,1.0441913]
[1769138279028,0.87193682,2964.9,2964.0,1.0441913]
[1769138279332,0.005058,2965.0,2964.0,1.0441913]
[1769138279628,0.00299951,2965.6,2964.4,0.1523309]
[1769138279830,0.87167807,2965.5,2964.4,0.1523309]
[1769138280029,0.87167807,2965.4,2964.6,0.8918604]
[1769138280331,0.00299951,2965.6,2964.4,0.1523309]
[1769138280538,0.87164774,2965.5,2964.4,0.1523309]
[1769138280735,0.00299951,2965.6,2964.4,0.1523309]
[1769138280929,0.8716473,2965.5,2964.4,0.1523309]
[1769138281126,0.00299951,2965.6,2964.4,0.1523309]
[1769138281325,0.87113219,2965.5,2964.4,0.1523309]
[1769138281531,0.87119491,2965.4,2964.7,0.005058]
[1769138281731,0.8918604,2965.5,2964.7,0.005058]
[1769138281934,0.00299951,2965.6,2964.7,0.005058]
[1769138282127,0.87113959,2965.5,2964.7,0.005058]
[1769138282324,0.00299951,2965.6,2964.7,0.005058]
[1769138288242,0.00299951,2965.6,2964.7,0.14921405]
[1769138298341,9.53871307,2966.6,2965.5,1.03601645]
[1769138298342,6.498,2966.6,2965.5,1.03601645]
[1769138298543,0.86721811,2966.5,2965.1,1.03601645]
[1769138298743,0.86721811,2966.4,2965.1,1.03601645]
[1769138299046,0.86721811,2966.3,2965.1,1.03601645]
[1769138299243,0.0037589,2966.3,2965.1,1.03963562]
[1769138301744,0.0037589,2966.3,2965.1,0.00361917]
[1769138301954,0.0037589,2966.3,2965.4,0.8918604]
[1769138302449,0.0037589,2966.3,2965.7,0.8918604]
[1769138302749,0.31816175,2967.0,2965.7,0.8918604]
[1769138302947,0.86632211,2966.9,2965.5,0.14415605]
[1769138303242,0.86632211,2966.8,2965.5,0.14415605]
[1769138303449,0.86632211,2966.7,2965.5,0.14415605]
[1769138303650,0.86632211,2966.6,2965.5,0.14415605]
[1769138303853,0.00237399,2966.7,2965.5,0.14415605]
[1769138304143,0.8661998,2966.6,2965.5,0.14415605]
[1769138304340,0.00237399,2966.7,2965.5,0.14415605]
[1769138304541,0.8661528,2966.6,2965.5,0.14415605]
[1769138304742,0.00237399,2966.7,2965.5,0.14415605]
[1769138304948,0.8661528,2966.6,2965.5,0.14415605]
[1769138305248,0.00237399,2966.7,2965.5,0.14415605]
[1769138305547,0.86617582,2966.6,2965.5,0.14415605]
[1769138305745,0.00237399,2966.7,2965.5,0.14415605]
[1769138305948,0.8661764,2966.6,2965.5,0.14415605]
[1769138306245,0.00237399,2966.7,2965.5,0.14415605]
[1769138306445,0.86627364,2966.6,2965.5,0.14415605]
[1769138306751,0.00237399,2966.7,2965.5,0.14415605]
[1769138306940,0.86627364,2966.6,2965.5,0.14415605]
[1769138307145,0.00237399,2966.7,2965.5,0.14415605]
[1769138307451,0.86655057,2966.6,2965.5,0.14415605]
[1769138307751,0.00237399,2966.7,2965.5,0.14415605]
[1769138309955,0.15183574,2966.7,2965.1,0.14777522]
[1769138311953,0.14431152,2966.5,2965.1,0.00361917]
[1769138312152,1.01125287,2966.4,2965.1,0.00361917]
[1769138312352,0.14431152,2966.4,2965.1,0.00361917]
[1769138317458,1.0118464,2966.3,2965.1,0.00361917]
[1769138317653,0.14431152,2966.3,2965.1,0.00361917]
[1769138318261,0.14431152,2966.1,2965.1,0.00361917]
[1769138320565,0.8678853,2966.0,2965.1,0.00361917]
[1769138320764,0.14431152,2966.1,2965.1,0.00361917]
[1769138321061,0.14431152,2965.9,2965.1,0.00361917]
[1769138321264,0.86793874,2965.8,2964.7,0.005058]
[1769138321462,1.01231426,2965.7,2964.7,0.005058]
[1769138321757,0.89052014,2966.0,2964.7,0.005058]
[1769138321758,0.14431152,2965.5,2964.7,0.005058]
[1769138322362,0.14431152,2965.5,2964.7,0.00861162]
[1769138323055,0.86791936,2965.4,2964.7,0.00861162]
[1769138323262,0.14431152,2965.4,2964.7,0.00861162]
[1769138324555,0.14431152,2965.4,2963.8,2.57287713]
[1769138324759,0.14431152,2965.1,2963.4,2.43486631]
[1769138325263,0.14431152,2965.1,2963.3,2.43486631]
[1769138325954,0.14431152,2965.1,2963.3,2.43831795]
[1769138327468,0.14431152,2965.1,2963.3,0.00345164]
[1769138327965,0.14431152,2965.1,2963.3,2.43831795]
[1769138328469,0.14431152,2965.1,2963.3,0.00345164]
[1769138333074,0.14431152,2964.7,2963.3,0.00345164]
[1769138333965,0.14431152,2964.6,2963.3,0.00345164]
[1769138334170,0.14747467,2964.6,2963.3,0.00345164]
[1769138338074,0.14431152,2964.3,2962.6,1.876]
[1769138338760,0.005058,2963.7,2962.6,1.876]
[1769138339273,0.005058,2963.7,2962.6,1.87864134]
[1769138344867,0.15220672,2963.7,2962.6,0.00264134]
[1769138347778,0.15220672,2963.7,2961.8,0.14025901]
[1769138348973,0.14714872,2963.5,2961.8,0.00354484]
[1769138349176,0.14714872,2963.3,2961.8,0.00354484]
[1769138358180,0.15220672,2963.7,2962.3,0.89052014]
[1769138358373,0.005058,2963.7,2962.7,0.89052014]
[1769138359485,0.005058,2963.7,2962.4,0.14025901]
[1769138359783,0.15220672,2963.7,2962.0,6.35412532]
[1769138359983,0.15220672,2963.7,2962.0,7.24464546]
[1769138360784,0.15220672,2963.7,2962.1,0.14025901]
[1769138361477,0.15220672,2963.7,2962.1,2.57512532]
[1769138362286,0.15220672,2963.7,2962.2,0.14025901]
[1769138362474,0.005058,2963.7,2962.4,1.03077915]
[1769138362784,0.005058,2963.7,2962.5,0.14025901]
[1769138362987,0.005058,2963.7,2963.0,0.89213822]
[1769138363380,0.005058,2963.7,2962.8,0.89213822]
[1769138368390,0.005058,2963.7,2963.1,0.89213822]
[1769138370387,0.14714872,2964.1,2963.1,0.89213822]
[1769138370594,0.86821091,2964.0,2963.1,0.89213822]
[1769138370792,0.14714872,2964.5,2963.1,0.89213822]
[1769138370992,1.01533941,2964.4,2963.1,0.89213822]
[1769138371293,0.86819069,2964.3,2963.1,0.89213822]
[1769138372893,0.86819069,2964.3,2963.7,0.89213822]
[1769138373093,0.00316315,2964.6,2963.7,0.89213822]
[1769138373296,0.86783505,2964.5,2963.7,0.89213822]
[1769138373595,0.00316315,2964.6,2963.7,0.89213822]
[1769138373793,0.005058,2964.4,2963.7,0.89213822]
[1769138375095,0.00316315,2964.6,2964.0,0.89213822]
[1769138375399,0.00316315,2964.6,2964.0,0.89505249]
[1769138377695,0.14446167,2964.6,2964.0,0.00291427]
[1769138377898,0.14446167,2964.6,2963.4,0.89719622]
[1769138378807,0.14446167,2964.6,2963.4,0.89989124]
[1769138394422,0.14129852,2964.4,2963.4,0.00775302]
[1769138395116,0.86791575,2964.3,2963.4,0.00775302]
[1769138395322,0.14129852,2964.4,2963.4,0.00775302]
[1769138395623,0.86791566,2964.3,2963.4,0.00775302]
[1769138395821,0.14129852,2964.4,2963.4,0.00775302]
[1769138396020,0.86791628,2964.3,2963.4,0.00775302]
[1769138396222,0.14129852,2964.4,2963.4,0.00775302]
[1769138396422,0.86809112,2964.3,2963.4,0.00775302]
[1769138396623,0.14129852,2964.4,2963.4,0.00775302]
[1769138396819,0.86809886,2964.3,2963.4,0.00775302]
[1769138397120,0.14129852,2964.4,2963.4,0.00775302]
[1769138397318,0.86828314,2964.3,2963.4,0.00775302]
[1769138397520,0.14129852,2964.4,2963.4,0.00775302]
[1769138397720,0.8682825,2964.3,2963.4,0.00775302]
[1769138398024,0.86828127,2964.2,2963.4,0.89989124]
[1769138398226,0.00316315,2964.6,2963.4,0.89989124]
[1769138398421,0.86849099,2964.5,2963.4,0.89989124]
[1769138398723,0.86849099,2964.4,2963.4,0.89989124]
[1769138398923,0.86849099,2964.3,2963.4,0.89989124]
[1769138399127,0.86849099,2964.2,2963.4,0.89989124]
[1769138399325,0.00316315,2964.6,2963.7,0.89213822]
[1769138399525,0.86873148,2964.5,2963.7,0.89213822]
[1769138399726,0.86873148,2964.4,2963.7,0.89213822]
[1769138399925,0.00316315,2964.6,2963.7,0.89213822]
[1769138400221,0.86871995,2964.5,2963.7,0.89213822]
[1769138400429,0.00316315,2964.6,2963.7,0.89213822]
[1769138400430,0.86871995,2964.4,2963.7,0.89213822]
[1769138400727,0.14129852,2965.2,2964.3,0.89213822]
[1769138400921,0.86894371,2965.1,2964.0,0.89213822]
[1769138401117,0.86894371,2965.0,2964.0,0.89213822]
[1769138401313,0.86894371,2964.9,2964.0,0.89213822]
[1769138401525,0.86894371,2964.8,2964.0,0.89213822]
[1769138401718,0.86894371,2964.7,2964.0,0.89213822]
[1769138401920,0.86894371,2964.6,2964.0,0.89213822]
[1769138402122,0.00273868,2964.8,2964.0,0.89213822]
[1769138402322,0.86898293,2964.7,2964.0,0.89213822]
[1769138402623,0.00273868,2964.8,2964.0,0.89213822]
[1769138402925,0.86898285,2964.7,2964.0,0.89213822]
[1769138403126,0.00273868,2964.8,2964.0,0.89213822]
[1769138403318,0.86890935,2964.7,2964.0,0.89213822]
[1769138403517,0.00273868,2964.8,2964.0,0.89213822]
[1769138403719,0.86890961,2964.7,2964.0,0.89213822]
[1769138403914,0.00273868,2964.8,2964.0,0.89213822]
[1769138404219,0.00273868,2964.8,2963.7,0.89213822]
[1769138404220,0.86891013,2964.7,2963.7,0.89213822]
[1769138404420,0.00273868,2964.8,2963.7,0.89213822]
[1769138404421,0.86891013,2964.6,2963.7,0.89213822]
[1769138404620,0.00273868,2964.8,2963.7,0.89213822]
[1769138404923,0.86887966,2964.7,2963.7,0.89213822]
[1769138405119,0.86887966,2964.6,2963.7,0.89213822]
[1769138405423,0.00273868,2964.8,2963.7,0.89213822]
[1769138405622,0.8688385,2964.7,2963.7,0.89213822]
[1769138405926,0.14625841,2964.5,2963.4,0.00775302]
[1769138406126,0.8688385,2964.4,2963.4,0.89989124]
[1769138407028,0.8688385,2964.4,2963.4,0.00775302]
[1769138407029,0.14625841,2964.3,2963.4,0.00775302]
[1769138407327,1.01509691,2964.2,2963.4,0.00775302]
[1769138407530,0.8688385,2964.1,2963.4,0.00775302]
[1769138407728,0.8688385,2964.0,2963.4,0.00775302]
[1769138407927,0.14625841,2964.2,2963.4,0.00775302]
[1769138408123,0.86865578,2964.1,2963.4,0.00775302]
[1769138408329,0.14625841,2964.2,2963.4,0.00775302]
[1769138408528,0.86852797,2964.1,2963.4,0.00775302]
[1769138408828,0.14625841,2964.2,2963.4,0.00775302]
[1769138409029,0.86852814,2964.1,2963.4,0.00775302]
[1769138409220,0.14625841,2964.2,2963.4,0.00775302]
[1769138411029,1.01456209,2964.1,2963.4,0.00775302]
[1769138411225,0.14625841,2964.1,2963.4,0.00775302]
[1769138417739,0.14625841,2964.5,2963.4,0.00775302]
[1769138417937,0.86910616,2964.4,2963.4,0.00775302]
[1769138418140,0.86910616,2964.3,2963.4,0.00775302]
[1769138418442,0.14625841,2964.5,2963.4,0.00775302]
[1769138418737,0.86464323,2964.4,2963.4,0.00775302]
[1769138418933,0.86464323,2964.3,2963.4,0.00775302]
[1769138419235,0.14625841,2964.5,2963.4,0.00775302]
[1769138419435,0.86453286,2964.4,2963.4,0.00775302]
[1769138419637,0.86453286,2964.3,2963.4,0.00775302]
[1769138419840,0.14625841,2964.5,2963.4,0.00775302]
[1769138420035,0.86451595,2964.4,2963.4,0.00775302]
[1769138421039,1.01077436,2964.4,2963.4,0.00775302]
[1769138421339,1.01077436,2964.3,2963.4,0.00775302]
[1769138421541,0.86451595,2964.2,2963.4,0.00775302]
[1769138421838,0.14625841,2964.3,2963.4,0.00775302]
[1769138422038,0.86450343,2964.2,2963.4,0.00775302]
[1769138422240,0.14625841,2964.3,2963.4,0.00775302]
[1769138422435,0.86450743,2964.2,2963.4,0.00775302]
[1769138422636,0.14625841,2964.3,2963.4,0.00775302]
[1769138422837,0.86450644,2964.2,2963.4,0.00775302]
[1769138423036,0.14625841,2964.3,2963.4,0.00775302]
[1769138423239,0.86448506,2964.2,2963.4,0.00775302]
[1769138423429,0.14625841,2964.3,2963.4,0.00775302]
[1769138423636,0.86451398,2964.2,2963.4,0.00775302]
[1769138423831,0.14625841,2964.3,2963.4,0.00775302]
[1769138424036,0.86438067,2964.2,2963.4,0.00775302]
[1769138424238,0.14625841,2964.3,2963.4,0.00775302]
[1769138424532,0.86435392,2964.2,2963.4,0.00775302]
[1769138424734,0.14625841,2964.3,2963.4,0.00775302]
[1769138424935,0.86435353,2964.2,2963.4,0.00775302]
[1769138425131,0.14625841,2964.3,2963.4,0.00775302]
[1769138425347,0.8643446,2964.2,2963.4,0.00775302]
[1769138425540,0.14625841,2964.3,2963.4,0.00775302]
[1769138425741,0.86434367,2964.2,2963.4,0.00775302]
[1769138425940,0.14625841,2964.3,2963.4,0.00775302]
[1769138426142,0.86434358,2964.2,2963.4,0.00775302]
[1769138426342,0.14625841,2964.3,2963.4,0.00775302]
[1769138426546,0.86433431,2964.2,2963.4,0.00775302]
[1769138426740,0.14625841,2964.3,2963.4,0.00775302]
[1769138427034,0.86433403,2964.2,2963.4,0.00775302]
[1769138427237,0.14625841,2964.3,2963.4,0.00775302]
[1769138427434,0.86432575,2964.2,2963.4,0.00775302]
[1769138427640,0.14625841,2964.3,2963.4,0.00775302]
[1769138427848,0.86432613,2964.2,2963.4,0.00775302]
[1769138428044,0.14625841,2964.3,2963.4,0.00775302]
[1769138428349,0.86428527,2964.2,2963.4,0.00775302]
[1769138428542,0.14625841,2964.3,2963.4,0.00775302]
[1769138428837,0.8642141,2964.2,2963.4,0.00775302]
[1769138429038,0.14625841,2964.3,2963.4,0.00775302]
[1769138429341,0.8641709,2964.2,2963.4,0.00775302]
[1769138429536,0.14625841,2964.3,2963.4,0.00775302]
[1769138429736,0.86421039,2964.2,2963.4,0.00775302]
[1769138429947,0.14625841,2964.3,2963.4,0.00775302]
[1769138430148,0.86420485,2964.2,2963.4,0.00775302]
[1769138430351,0.14625841,2964.3,2963.4,0.00775302]
[1769138430647,0.86424237,2964.2,2963.4,0.00775302]
[1769138430847,1.01044751,2964.1,2963.4,0.00775302]
[1769138431049,0.14625841,2964.1,2963.4,0.00775302]
[1769138431451,0.86432241,2964.0,2963.4,0.00775302]
[1769138431751,0.14625841,2963.9,2962.6,2.43486631]
[1769138432049,0.14625841,2963.9,2962.5,2.57990077]
[1769138432252,0.14625841,2963.9,2962.6,2.43486631]
[1769138432851,0.14625841,2963.9,2962.6,2.4390363]
[1769138435361,0.86571865,2963.8,2962.7,2.43486631]
[1769138435656,0.14625841,2963.9,2962.7,2.43486631]
[1769138435850,0.86572069,2963.8,2962.7,2.43486631]
[1769138436156,0.14625841,2963.9,2962.7,2.43486631]
[1769138436344,0.86592041,2963.8,2962.7,2.43486631]
[1769138436546,0.14625841,2963.9,2962.7,2.43486631]
[1769138436746,0.86591924,2963.8,2962.7,2.43486631]
[1769138437048,0.14625841,2963.9,2963.0,0.005058]
[1769138437248,0.86591933,2963.8,2963.0,0.005058]
[1769138437452,0.14625841,2963.9,2963.0,0.005058]
[1769138437655,0.86589902,2963.8,2963.0,0.005058]
[1769138437847,0.14625841,2963.9,2963.0,0.005058]
[1769138438049,0.86589895,2963.8,2963.0,0.005058]
[1769138438250,0.86589895,2963.7,2963.0,0.005058]
[1769138438451,0.14625841,2963.9,2963.0,0.005058]
[1769138438651,0.86588137,2963.8,2963.0,0.005058]
[1769138438952,0.86588137,2963.7,2963.0,0.005058]
[1769138439150,0.14625841,2963.9,2963.0,0.005058]
[1769138439352,0.86586739,2963.8,2963.0,0.005058]
[1769138439647,0.86586739,2963.7,2963.0,0.005058]
[1769138439953,0.14778098,2964.3,2963.0,0.005058]
[1769138440149,0.86589521,2964.2,2963.0,0.005058]
[1769138440350,0.86589521,2964.1,2963.0,0.005058]
[1769138440551,0.86589521,2964.0,2963.0,0.005058]
[1769138440754,0.86589521,2963.9,2963.0,0.005058]
[1769138440956,0.14778098,2964.1,2963.0,0.005058]
[1769138441253,0.86589578,2964.0,2963.0,0.005058]
[1769138441452,0.86589578,2963.9,2963.0,0.005058]
[1769138441652,0.14778098,2964.1,2963.0,0.005058]
[1769138441857,0.86588058,2964.0,2963.0,0.005058]
[1769138442152,0.86588058,2963.9,2963.0,0.005058]
[1769138442355,0.14778098,2964.1,2963.0,0.005058]
[1769138442543,0.86587844,2964.0,2963.0,0.005058]
[1769138442748,0.86587844,2963.9,2963.0,0.005058]
[1769138443049,0.14778098,2964.1,2963.0,0.005058]
[1769138443253,0.86587883,2964.0,2963.0,0.005058]
[1769138443454,0.86587883,2963.9,2963.0,0.005058]
[1769138443656,0.14778098,2964.1,2963.0,0.005058]
[1769138443855,0.86588073,2964.0,2963.0,0.005058]
[1769138444056,0.86588073,2963.9,2963.0,0.005058]
[1769138444258,0.14778098,2964.1,2963.0,0.005058]
[1769138444556,0.8658815,2964.0,2963.0,0.005058]
[1769138444756,0.8658815,2963.9,2963.0,0.005058]
[1769138444957,0.14778098,2964.1,2963.0,0.005058]
[1769138445158,0.86592603,2964.0,2963.0,0.005058]
[1769138445457,0.86592603,2963.9,2963.0,0.005058]
[1769138445756,0.14778098,2964.1,2963.0,0.005058]
[1769138445957,0.86597883,2964.0,2963.0,0.005058]
[1769138446148,0.86597883,2963.9,2963.0,0.005058]
[1769138446351,0.14778098,2964.1,2963.0,0.005058]
[1769138446550,0.86309303,2964.0,2963.0,0.005058]
[1769138446750,0.86309303,2963.9,2963.0,0.005058]
[1769138446959,0.14778098,2964.1,2963.0,0.005058]
[1769138447156,0.8630943,2964.0,2963.0,0.005058]